Cogmind - Beta 9.4 @@@ ROGUE MODE // 2020.02.25 @ 20:53:42 Player: VoodooWoodoo Result: Destroyed by EMP Trap Performance ------------- Evolutions (1) 500 Regions Visited (3) 600 Robots Destroyed (35) 175 Value Destroyed (1162) 1162 Prototype IDs (1) 20 Alien Tech Used (0) 0 Bonus (13) 13 TOTAL SCORE: 2470 Bonus ------- High Alert Combat Kills 13 Cogmind --------- Core Integrity 0/400 Matter 300/300 Energy 98/100 System Corruption 0% Temperature Cool (0) Movement Core (50) Location -9/Storage Parts ------- > --- POWER (1) -------- (None) > --- PROPULSION (3) --- (None) > --- UTILITY (3) ------ (None) > --- WEAPON (2) ------- (None) > --- INVENTORY (4) ---- Medium Storage Unit Medium Storage Unit Large Storage Unit Mini Grenade Launcher Peak State ------------ > --- POWER ------------ Ion Engine > --- PROPULSION ------- Aluminum Leg Aluminum Leg Aluminum Leg > --- UTILITY ---------- Medium Storage Unit Utility Shielding Hardened Light Armor Plating > --- WEAPON ----------- Improved Light Cannon Improved Light Cannon > --- INVENTORY -------- Ion Engine Aluminum Leg Medium Storage Unit Large Storage Unit Improved Light Cannon Improved Light Cannon Mini Grenade Launcher [Rating: 13] Favorites ----------- Power Ion Engine Engine Ion Engine Propulsion Aluminum Leg Treads Light Treads Leg Aluminum Leg Utility Utility Shielding Storage Medium Storage Unit Protection Utility Shielding Weapon Improved Light Cannon Energy Gun Medium Laser Energy Cannon Cooled Plasma Cannon Ballistic Gun Assault Rifle Ballistic Cannon Improved Light Cannon Launcher Mini Grenade Launcher Build | -11 -10 -9 -9 ------- Run | Scr Mat Mat Sto Slots Evolved 2 | . . 2 . Power . | . . . . Propulsion 1 | . . 1 . Utility 1 | . . 1 . Weapon . | . . . . Parts Attached 35 | 7 12 9 7 Power 5 | 1 2 . 2 Engine 5 | 1 2 . 2 Core . | . . . . Reactor . | . . . . Propulsion 10 | 2 2 4 2 Treads 1 | . . . 1 Leg 9 | 2 2 4 1 Wheel . | . . . . Hover . | . . . . Flight . | . . . . Utility 5 | 1 3 1 . Device . | . . . . Storage 2 | 1 1 . . Processor . | . . . . Hackware . | . . . . Protection 3 | . 2 1 . Artifact . | . . . . Weapon 15 | 3 5 4 3 Energy Gun 4 | 2 2 . . Energy Cannon 1 | . . . 1 Ballistic Gun 2 | 1 1 . . Ballistic Cannon 6 | . 2 2 2 Launcher 2 | . . 2 . Special Weapon . | . . . . Impact Weapon . | . . . . Slashing Weapon . | . . . . Piercing Weapon . | . . . . Special Melee Weapon . | . . . . Unidentified Prototypes 1 | . . . 1 Parts Lost 16 | . 4 1 11 Power 2 | . . . 2 Propulsion 7 | . 1 1 5 Utility 1 | . . . 1 Weapon 6 | . 3 . 3 Highest Loss Streak 5 | . 2 1 5 Average Slot Usage (%) 89 | . 91 100 70 Engine 11 | . 14 11 8 Leg 27 | . 28 33 18 Storage 10 | . 14 11 5 Protection 14 | . 8 22 14 Energy Gun 7 | . 17 . . Energy Cannon 1 | . . . 4 Ballistic Gun 2 | . 6 . . Ballistic Cannon 10 | . 2 18 14 Launcher 1 | . . 3 . Naked Turns 1 | . . . 1 Heaviest Build 27 | 13 26 27 27 Greatest Support 30 | 20 20 30 30 Greatest Overweight (x) 4 | 2 1 . 4 Average Overweight (x) . | . . . . Largest Inventory Capacity 8 | 6 8 8 8 Average Capacity 6 | 5 6 8 6 Most Carried 8 | 4 8 7 7 Average Carried 5 | 2 5 6 4 Final Capacity 8 | 6 8 8 4 Final Carried 8 | 4 8 7 4 Class Distribution -------------------- 80% | Mutant 19% | Scavenger-Mutant Dominant Class ---------------- Mutant | -10/Materials Mutant | -9/Materials Mutant | -9/Storage Resources | -11 -10 -9 -9 ----------- Run | Scr Mat Mat Sto Matter Collected 913 | 270 142 313 188 Remotely . | . . . . Salvage Created 1098 | . 463 339 296 Parts 62 | . 18 26 18 Haulers Intercepted . | . . . . Recyclers Shooed . | . . . . Parts Field Recycled . | . . . . Retrieved Matter . | . . . . Parts Self-Destructed . | . . . . Prevented . | . . . . Kills | -11 -10 -9 -9 ------- Run | Scr Mat Mat Sto Combat Hostiles Destroyed 35 | . 11 16 8 Guns 11 | . 11 . . Cannons 18 | . . 10 8 AOE 6 | . . 6 . Classes Destroyed 4 | . 1 3 . Swarmer 7 | . . 7 . Grunt 19 | . 11 6 2 Duelist 1 | . . 1 . Sentry 8 | . . 2 6 Best Kill Streak 12 | . 4 12 4 Combat Bots Only 12 | . 4 12 4 Max Kills in Single Turn 4 | . 1 4 1 Gunslinging . | . . . . Exploded 3 | . . 3 . Melee . | . . . . Uniques/NPCs Destroyed . | . . . . Combat | -11 -10 -9 -9 -------- Run | Scr Mat Mat Sto Damage Taken 2347 | . 544 496 1307 Core 488 | . 78 74 336 Absorbed by Shields . | . . . . Core Remaining (%) 84 | 100 68 . . Volleys Fired 90 | . 43 29 18 Largest 2 | . 2 2 2 Hottest 100 | . 100 78 78 Shots Fired 161 | . 67 58 36 Gun 67 | . 67 . . Cannon 92 | . . 56 36 Launcher 2 | . . 2 . Special . | . . . . Kinetic 112 | . 28 56 28 Thermal 47 | . 39 . 8 Explosive 2 | . . 2 . Electromagnetic . | . . . . Robot Hit Streak 17 | . 11 7 17 Robot Miss Streak 3 | . 2 3 2 Penetration Max . | . . . . Secondary Targets . | . . . . Shots Hit Robots 114 | . 52 34 28 Core Hits 51 | . 25 17 9 Critical Hits 1 | . . . 1 Critical Kills . | . . . . Critical Parts Destroyed 1 | . . . 1 Melee Attacks . | . . . . Impact . | . . . . Slashing . | . . . . Piercing . | . . . . Sneak Attacks . | . . . . Combat Hostiles . | . . . . Follow-up Attacks . | . . . . Damage Inflicted 2218 | . 692 860 666 Guns 687 | . 687 . . Cannons 1270 | . . 610 660 Explosions 250 | . . 250 . Melee . | . . . . Ramming 11 | . 5 . 6 Kinetic 1356 | . 285 610 461 Thermal 601 | . 402 . 199 Explosive 250 | . . 250 . Electromagnetic . | . . . . Impact . | . . . . Slashing . | . . . . Piercing . | . . . . Highest Corruption . | . . . . Average Corruption . | . . . . Corruption Purged . | . . . . Overload Shots . | . . . . Overflow Damage 23 | . . . 23 Projectiles 23 | . . . 23 Explosions . | . . . . Melee . | . . . . Knockbacks 12 | . . 11 1 Impact . | . . . . Kinetic 11 | . . 10 1 Secondary 1 | . . 1 . Self-Inflicted Damage 1 | . 1 . . Shots . | . . . . Rammed 5 | . 1 . 4 Targets Rammed 7 | . 3 . 4 Kicked 2 | . 2 . . Crushed . | . . . . Highest Temperature 390 | . 341 390 195 Average Temperature 139 | . 133 182 58 Received Heat Transfer 822 | . 306 150 366 Effects 3 | . 1 2 . Energy Bleed 2 | . . 2 . Interference 1 | . 1 . . Siege Activations . | . . . . Robots Corrupted . | . . . . Combat Hostiles . | . . . . Parts Fried . | . . . . Impact Corruptions . | . . . . Robots Melted . | . . . . Combat Hostiles . | . . . . Parts Melted 3 | . 3 . . Heat Transferred 1449 | . 1149 . 300 Parts Sabotaged . | . . . . Parts Stolen . | . . . . Parts Stripped . | . . . . Power Chain Reactions . | . . . . Missiles Intercepted . | . . . . Alert | -11 -10 -9 -9 ------- Run | Scr Mat Mat Sto Peak Influence 457 | . 260 457 348 Average Influence 140 | . 115 118 248 Maximum Alert Level 2 | . 1 2 1 Low Security (%) 69 | 100 70 87 36 Level 1 28 | . 29 6 63 Level 2 1 | . . 5 . Level 3 . | . . . . Level 4 . | . . . . Level 5 . | . . . . High Security . | . . . . Max Security . | . . . . Squads Dispatched 6 | . 2 1 3 Investigation 1 | . . . 1 Extermination . | . . . . Reinforcement 3 | . 2 1 . Assault . | . . . . Garrison 2 | . . . 2 Intercept . | . . . . Construction Impeded . | . . . . Haulers Reinforced . | . . . . Stealth | -11 -10 -9 -9 --------- Run | Scr Mat Mat Sto Distress Signals 2 | . 2 . . Communications Jammed . | . . . . Distress Signals . | . . . . Times Spotted 50 | . 17 20 13 Peak Tracking Total 8 | . 6 8 7 Tactical Retreats . | . . . . Traps | -11 -10 -9 -9 ------- Run | Scr Mat Mat Sto Traps Triggered 3 | . . . 3 Indirectly . | . . . . Trap Hack Attempts . | . . . . Triggered . | . . . . Disarmed . | . . . . Reprogrammed . | . . . . Reused . | . . . . Traps Extracted . | . . . . Installed . | . . . . Triggered . | . . . . Machines | -11 -10 -9 -9 ---------- Run | Scr Mat Mat Sto Machines Disabled . | . . . . Max in Single Turn . | . . . . Machines Sabotaged . | . . . . Garrisons Compromised . | . . . . Overloaded Fab Kills . | . . . . Fab Network Shutdowns . | . . . . Hacking | -11 -10 -9 -9 --------- Run | Scr Mat Mat Sto Machines Accessed 7 | . 2 3 2 Terminals 7 | . 2 3 2 Fabricators . | . . . . Repair Stations . | . . . . Recycling Units . | . . . . Scanalyzers . | . . . . Garrison Access . | . . . . Total Hacks 21 | . 6 7 8 Successful 8 | . 1 3 4 Failed 13 | . 5 4 4 Catastrophic 4 | . 1 2 1 Database Lockouts . | . . . . Manual 8 | . 2 6 . Terminals 21 | . 6 7 8 Fabricators . | . . . . Repair Stations . | . . . . Recycling Units . | . . . . Scanalyzers . | . . . . Garrison Access . | . . . . Terminal Hacks 7 | . 1 2 4 Terminal Index 1 | . . . 1 Alert Level 2 | . 1 . 1 Unreport Threat 1 | . . . 1 Zone Layout 3 | . . 2 1 Fabricator Hacks . | . . . . Repair Station Hacks . | . . . . Recycling Unit Hacks . | . . . . Scanalyzer . | . . . . Garrison Access Hacks . | . . . . Unauthorized Hacks 2 | . . 2 . Terminals 1 | . . 1 . Assimilate 1 | . . 1 . Fabricators . | . . . . Repair Stations . | . . . . Recycling Units . | . . . . Scanalyzers . | . . . . Garrison Access . | . . . . Data Cores Recovered . | . . . . Used . | . . . . Hacking Detections 6 | . 2 3 1 Full Trace Events 1 | . . . 1 Feedback Events . | . . . . Feedback Blocked . | . . . . Robot Schematics Acquired . | . . . . Robots Built . | . . . . Matter . | . . . . Time . | . . . . Total Robot Build Rating . | . . . . Part Schematics Acquired . | . . . . Parts Built . | . . . . Matter . | . . . . Time . | . . . . Total Part Build Rating . | . . . . Parts Repaired . | . . . . Time . | . . . . Parts Recycled . | . . . . Recycled Matter . | . . . . Retrieved Matter . | . . . . Retrieved Components . | . . . . Parts Scanalyzed . | . . . . Part Schematics Acquired . | . . . . Parts Damaged . | . . . . Bothacking | -11 -10 -9 -9 ------------ Run | Scr Mat Mat Sto Used RIF Installer . | . . . . Robots Hacked . | . . . . Non-combat . | . . . . Combat . | . . . . Robot Hacks Applied . | . . . . Relay Couplers Released . | . . . . Robots Rewired . | . . . . Allies Hacked . | . . . . Hacks Repelled . | . . . . Allies | -11 -10 -9 -9 -------- Run | Scr Mat Mat Sto Total Allies 1 | . . 1 . Largest Group 1 | . . 1 . Highest-Rated Group 10 | . . 10 . Highest-Rated Ally 10 | . . 10 . Total Orders . | . . . . Ally Attacks . | . . . . Total Damage . | . . . . Kills . | . . . . Allies Corrupted . | . . . . Allies Melted . | . . . . Intel | -11 -10 -9 -9 ------- Run | Scr Mat Mat Sto Robot Analysis Total . | . . . . Derelict Logs Recovered . | . . . . Drone Launches . | . . . . Drone Recoveries . | . . . . Exploration | -11 -10 -9 -9 ------------- Run | Scr Mat Mat Sto Turns Passed 1082 | 70 410 346 256 Spaces Moved 554 | 50 193 185 126 Core 16 | 7 . . 9 Treads 37 | . . . 37 Legs 501 | 43 193 185 80 Wheels . | . . . . Hover . | . . . . Flight . | . . . . Fastest Speed 50 | 50 120 120 50 Average Speed 123 | 112 123 120 132 Slowest Speed 250 | 150 150 120 250 Overloaded Moves . | . . . . Propulsion Burnouts . | . . . . Robots Hopped . | . . . . Cave-ins Triggered . | . . . . Exploration Rate (%) 30 | 4 54 27 36 Regions Visited 3 Branch Regions 1 Pre-discovered Areas . | . . . . Known Exits Taken . | . . . . Unknown Exits Taken 3 | 1 1 1 . Scrap Searched . | . . . . Spaces Dug . | . . . . Terrain Destroyed 25 | . . 22 3 Melee . | . . . . Projectile 6 | . . 3 3 AOE 19 | . . 19 . Actions | -11 -10 -9 -9 --------- Run | Scr Mat Mat Sto Total 782 | 60 298 248 176 Wait 71 | . 26 26 19 Move 551 | 49 192 184 126 Hop . | . . . . Pick Up 16 | 4 12 . . Fast Attach 13 | 6 4 . 3 Attach 9 | . 2 3 4 Detach 2 | . 1 . 1 Swap 13 | 1 6 6 . Drop 10 | . 9 . 1 Fire 90 | . 43 29 18 Melee . | . . . . Ram . | . . . . Kick 3 | . 3 . . Crush 4 | . . . 4 Escape Stasis . | . . . . Rewire . | . . . . Trap . | . . . . Miscellaneous . | . . . . Route ------- -11/Scrapyard -10/Materials -9/Materials (discovered 2 exits: [*Min] / *Sto) -9/Storage History --------- Turn | Location | Event 34 | -11/Scrapyard | Discovered new exit (range 14) 71 | -11/Scrapyard | Entered Materials 341 | -10/Materials | Build established: Mutant 468 | -10/Materials | Discovered new exit (range 6) 481 | -10/Materials | Entered another Materials area 481 | -9/Materials | Evolved 2 slots: Propulsion x1, Utility x1 573 | -9/Materials | Discovered new exit (range 11) 752 | -9/Materials | Discovered new exit (range 10) 827 | -9/Materials | Entered Storage 834 | -9/Storage | Destroyed 12 combat bots 923 | -9/Storage | Garrison activated, responded to threat 964 | -9/Storage | Lost 5 parts (1p1n1u2w) 975 | -9/Storage | Core integrity fell below 50% 1007 | -9/Storage | Lost 4 parts (1p3n) 1018 | -9/Storage | Core integrity fell below 20% 1082 | -9/Storage | Released all parts (3) 1083 | -9/Storage | Destroyed by EMP Trap Last Messages --------------- 01034_ U-05 Engineer builds a Wall. 01048_ Slammed into G-34 Mercenary. 01060_ Connecting with Terminal... >>Index(Terminals) Found 13 terminals. Downloaded coordinate data. >>Alert(Check) Current Alert Level: 1-T >>Alert(Purge) Purged threat record, alert level lowered. 01060_ Connecting with Terminal... >>Layout(Zone) Retrieving Zone 9Q layout... Downloaded map data. 01081_ Lgt. Treads destroyed. 01082_ Released Utility Shielding. 01082_ Released Cld. Plasma Cannon. 01082_ Released Imp. Ion Engine. 01083_ Triggered EMP Trap. 01083_ A bubble of electromagnetic force engulfs the area. Map ----- +----------------------------------------------------+ | ???????????????????????????? | | ???????????????????????????? | | ???????????????????????????? | | ???????????????????????????? | | ???????????????????????????? | | ???????????????????????????? | | ???????????????????????????? | | ???????????????????????????? | | ???????????????????????????? | | ???????????????????????????? | | ??? ?????????????????????? | | ??? +????????????????????? | | ??? #????????????????????? | | ??? #????????????????????? | | ??? #????????????????????? | | ??? #????????????????????? | | ??? #????????????????????? | | ??# #????????????????????? | | ??# #????????????????????? | | ??# #????????????????????? | | ??# #????????????????????? | | ??# #????????????????????? | | ??# #????####????????????? | | ??# #??? ?????????????? | | ??# # ! #?????# ???? | | ??#@^ # #?????##"#???? | | ??# ^ # """####### ???? | | ??# a# """# ##+#???? | | ??#!* Y """# ???? | | ??#]l # + ???? | | ??# # """# ???? | | ??# g# """# ####???? | | ??# # """###+#####T???? | | ??# # # ???? | | ??# b ### ##### """"" ""???? | | ??# #?###???# """"" ""???? | | ??# Y#???????# """"" ""???? | | ??# #####???# ???? | | ??# #"""#???# ???? | | ??# #"T"#############+#??? | | ??# ?? | | ??# ?? | | ??# % ?? | | ??#########/############???? | | ?????### %%% #### ?? ? | | ?????#"" """ "" # "" ""? | | ?????#"Y """ """# "G """ | | ?????#"" """ R"# "" """ | | ?????### """# | | ???????# """ #### | +----------------------------------------------------+ Best States ------------- Heat Dissipation 28 Energy Generation 12 Energy Capacity 265 Matter Stores 300 Matter Capacity 300 Sight Range 16 Terrain Scan Density 10 Armor Coverage 150 Utility Shielding 33 Evasion (%) 40 Recoil Reduction 1 Item Schematics ----------------- None Robot Schematics ------------------ None Fabricated ------------ Nothing Alien Tech Used ----------------- None Achievements -------------- None Challenges ------------ None Game ------ Seed MolecularBeamChronowheel Manual? 0 Play Time 00:20:26 Cumulative 36.8 hours Start 2020.02.25 @ 18:27:38 End 2020.02.25 @ 20:53:42 Sessions 3 Manual Loads 0 Difficulty Rogue Special Mode None Game No. 71 Rogue 71 Adventurer 0 Explorer 0 Win Type - Total 0 Types 0/0/0/0/0/0/0 Lore% 31 Gallery% 35 Achievement% 29 Wizard Run 0 Options --------- ASCII 0 Keyboard 1 Movement Numpad Keybinds 0 Fullscreen 2 Font 24/Terminus Map View 76x50 Tactical HUD 1 Map Filters NONE Filters NONE Steam 1 RUN: c609ef9c-3643-4790-9881-25ec367205bc